[Event "Titled Tuesday Blitz June 20 Late 2023"]
[White "Erdogmus, Yagiz Kaan"]
[Black "Ince, Taylan Ruzgar"]
[WhiteFideId "44599790"]
[BlackFideId "44513089"]
[WhiteElo "2359"]
[BlackElo "2147"]
[Result "1/2-1/2"]
[Round "3"]
[TimeControl "180+2"]
[Date "2023.06.20"]
[WhiteClock "0:00:12"]
[BlackClock "0:00:21"]
[Board "30"]

1. e4 {[%clk 0:03:00]}  e6 {[%clk 0:02:57]} 2. d4 {[%clk 0:02:57]}  d5 {[%clk 0:02:57]} 3. e5 {[%clk 0:02:56]}  c5 {[%clk 0:02:57]} 4. c3 {[%clk 0:02:56]}  Nc6 {[%clk 0:02:56]} 5. Nf3 {[%clk 0:02:56]}  Qb6 {[%clk 0:02:56]} 6. Bd3 {[%clk 0:02:56]}  cxd4 {[%clk 0:02:56]} 7. O-O {[%clk 0:02:56]}  Bd7 {[%clk 0:02:54]} 8. Nbd2 {[%clk 0:02:55]}  a6 {[%clk 0:02:53]} 9. Re1 {[%clk 0:02:54]}  Nge7 {[%clk 0:02:52]} 10. c4 {[%clk 0:02:52]}  Nb4 {[%clk 0:01:55]} 11. Bb1 {[%clk 0:02:47]}  d3 {[%clk 0:01:48]} 12. a3 {[%clk 0:02:23]}  Nc2 {[%clk 0:01:47]} 13. Bxc2 {[%clk 0:02:24]}  dxc2 {[%clk 0:01:47]} 14. Qxc2 {[%clk 0:02:24]}  Rc8 {[%clk 0:01:47]} 15. b3 {[%clk 0:02:24]}  Ng6 {[%clk 0:01:43]} 16. b4 {[%clk 0:02:16]}  dxc4 {[%clk 0:01:39]} 17. Ne4 {[%clk 0:02:16]}  Bc6 {[%clk 0:01:28]} 18. Qxc4 {[%clk 0:02:09]}  Qb5 {[%clk 0:01:15]} 19. Qc3 {[%clk 0:02:00]}  Be7 {[%clk 0:01:07]} 20. Bg5 {[%clk 0:01:59]}  O-O {[%clk 0:01:00]} 21. Bxe7 {[%clk 0:01:59]}  Bxe4 {[%clk 0:01:00]} 22. Qe3 {[%clk 0:01:39]}  Nxe7 {[%clk 0:00:56]} 23. Qxe4 {[%clk 0:01:39]}  Rc4 {[%clk 0:00:56]} 24. Qe2 {[%clk 0:01:34]}  Rfc8 {[%clk 0:00:53]} 25. Ng5 {[%clk 0:01:28]}  Ng6 {[%clk 0:00:35]} 26. Rad1 {[%clk 0:00:57]}  h6 {[%clk 0:00:32]} 27. Nf3 {[%clk 0:00:57]}  Nf4 {[%clk 0:00:27]} 28. Qd2 {[%clk 0:00:49]}  Nd5 {[%clk 0:00:24]} 29. Rc1 {[%clk 0:00:44]}  Qc6 {[%clk 0:00:20]} 30. Nd4 {[%clk 0:00:34]}  Qc7 {[%clk 0:00:18]} 31. Nb3 {[%clk 0:00:32]}  b6 {[%clk 0:00:18]} 32. Rxc4 {[%clk 0:00:31]}  Qxc4 {[%clk 0:00:17]} 33. Rc1 {[%clk 0:00:32]}  Nc3 {[%clk 0:00:16]} 34. Nd4 {[%clk 0:00:26]}  Rd8 {[%clk 0:00:10]} 35. Qxc3 {[%clk 0:00:22]}  Qxc3 {[%clk 0:00:10]} 36. Rxc3 {[%clk 0:00:23]}  Rxd4 {[%clk 0:00:11]} 37. g3 {[%clk 0:00:23]}  Rd1+ {[%clk 0:00:09]} 38. Kg2 {[%clk 0:00:23]}  Ra1 {[%clk 0:00:10]} 39. Rc8+ {[%clk 0:00:22]}  Kh7 {[%clk 0:00:09]} 40. Rc6 {[%clk 0:00:23]}  Rxa3 {[%clk 0:00:09]} 41. Rxb6 {[%clk 0:00:23]}  Ra4 {[%clk 0:00:09]} 42. Rb7 {[%clk 0:00:23]}  Kg6 {[%clk 0:00:10]} 43. f4 {[%clk 0:00:22]}  a5 {[%clk 0:00:08]} 44. b5 {[%clk 0:00:21]}  Rb4 {[%clk 0:00:09]} 45. Kf3 {[%clk 0:00:18]}  a4 {[%clk 0:00:09]} 46. g4 {[%clk 0:00:18]}  a3 {[%clk 0:00:10]} 47. h4 {[%clk 0:00:16]}  a2 {[%clk 0:00:10]} 48. h5+ {[%clk 0:00:15]}  Kh7 {[%clk 0:00:10]} 49. Ra7 {[%clk 0:00:16]}  Rxb5 {[%clk 0:00:11]} 50. Rxa2 {[%clk 0:00:17]}  g6 {[%clk 0:00:11]} 51. Ra7 {[%clk 0:00:16]}  Kg7 {[%clk 0:00:11]} 52. hxg6 {[%clk 0:00:16]}  Kxg6 {[%clk 0:00:12]} 53. Ra6 {[%clk 0:00:15]}  Rb3+ {[%clk 0:00:13]} 54. Kg2 {[%clk 0:00:15]}  Rc3 {[%clk 0:00:13]} 55. Ra8 {[%clk 0:00:14]}  Kg7 {[%clk 0:00:13]} 56. Ra2 {[%clk 0:00:13]}  Rd3 {[%clk 0:00:13]} 57. Rf2 {[%clk 0:00:13]}  Rc3 {[%clk 0:00:14]} 58. Rf3 {[%clk 0:00:13]}  Rc4 {[%clk 0:00:14]} 59. Kg3 {[%clk 0:00:13]}  Kg6 {[%clk 0:00:15]} 60. f5+ {[%clk 0:00:13]}  exf5 {[%clk 0:00:14]} 61. Rxf5 {[%clk 0:00:13]}  Re4 {[%clk 0:00:14]} 62. Kf3 {[%clk 0:00:13]}  Ra4 {[%clk 0:00:14]} 63. Kg3 {[%clk 0:00:14]}  Ra3+ {[%clk 0:00:14]} 64. Kh4 {[%clk 0:00:14]}  Ra1 {[%clk 0:00:15]} 65. Rf6+ {[%clk 0:00:14]}  Kg7 {[%clk 0:00:15]} 66. Kg3 {[%clk 0:00:14]}  Rg1+ {[%clk 0:00:16]} 67. Kh4 {[%clk 0:00:12]}  Rh1+ {[%clk 0:00:16]} 68. Kg3 {[%clk 0:00:12]}  Rg1+ {[%clk 0:00:17]} 69. Kh3 {[%clk 0:00:13]}  Rh1+ {[%clk 0:00:17]} 70. Kg2 {[%clk 0:00:13]}  Re1 {[%clk 0:00:17]} 71. Rf5 {[%clk 0:00:14]}  Re4 {[%clk 0:00:17]} 72. Kf3 {[%clk 0:00:14]}  Ra4 {[%clk 0:00:18]} 73. Rf4 {[%clk 0:00:12]}  Ra3+ {[%clk 0:00:19]} 74. Ke4 {[%clk 0:00:13]}  Kg6 {[%clk 0:00:19]} 75. Rf6+ {[%clk 0:00:13]}  Kg7 {[%clk 0:00:20]} 76. Kf4 {[%clk 0:00:13]}  Ra4+ {[%clk 0:00:20]} 77. Kf5 {[%clk 0:00:13]}  Ra1 {[%clk 0:00:20]} 78. Rc6 {[%clk 0:00:13]}  Rf1+ {[%clk 0:00:20]} 79. Ke4 {[%clk 0:00:14]}  Re1+ {[%clk 0:00:20]} 80. Kf4 {[%clk 0:00:14]}  Rf1+ {[%clk 0:00:21]} 81. Ke4 {[%clk 0:00:14]}  Re1+ {[%clk 0:00:21]} 82. Kd5 {[%clk 0:00:13]}  Rd1+ {[%clk 0:00:21]} 83. Ke4 {[%clk 0:00:12]}  Re1+ {[%clk 0:00:21]} 1/2-1/2


[Site "https://www.chess.com"]

[Event "Titled Tuesday Blitz June 20 Late 2023"]
[White "Dilmukhametov, Artur"]
[Black "Nazari, Arad"]
[WhiteFideId "24179922"]
[BlackFideId "12577324"]
[WhiteElo "2242"]
[BlackElo "2175"]
[Result "1/2-1/2"]
[Round "3"]
[TimeControl "180+2"]
[Date "2023.06.20"]
[WhiteClock "0:01:07"]
[BlackClock "0:00:19"]
[Board "38"]

1. e4 {[%clk 0:03:00]}  c5 {[%clk 0:02:56]} 2. Nf3 {[%clk 0:02:59]}  d6 {[%clk 0:02:56]} 3. Bb5+ {[%clk 0:02:58]}  Nd7 {[%clk 0:02:43]} 4. O-O {[%clk 0:02:57]}  a6 {[%clk 0:02:44]} 5. Bxd7+ {[%clk 0:02:56]}  Bxd7 {[%clk 0:02:44]} 6. h3 {[%clk 0:02:56]}  Nf6 {[%clk 0:02:43]} 7. e5 {[%clk 0:02:57]}  dxe5 {[%clk 0:02:43]} 8. Nxe5 {[%clk 0:02:58]}  e6 {[%clk 0:02:43]} 9. d4 {[%clk 0:02:58]}  Bd6 {[%clk 0:02:39]} 10. Nxd7 {[%clk 0:02:39]}  Nxd7 {[%clk 0:02:34]} 11. Be3 {[%clk 0:02:36]}  Qc7 {[%clk 0:02:29]} 12. Nd2 {[%clk 0:02:34]}  Bh2+ {[%clk 0:02:16]} 13. Kh1 {[%clk 0:02:34]}  Bf4 {[%clk 0:02:16]} 14. c3 {[%clk 0:02:20]}  O-O {[%clk 0:02:11]} 15. Qf3 {[%clk 0:02:17]}  Bxe3 {[%clk 0:02:09]} 16. fxe3 {[%clk 0:02:18]}  Rad8 {[%clk 0:02:03]} 17. Ne4 {[%clk 0:02:11]}  cxd4 {[%clk 0:01:36]} 18. exd4 {[%clk 0:02:12]}  Qc6 {[%clk 0:01:31]} 19. Rae1 {[%clk 0:02:06]}  h6 {[%clk 0:01:29]} 20. Qg3 {[%clk 0:02:03]}  Kh8 {[%clk 0:01:16]} 21. Qh4 {[%clk 0:01:59]}  f5 {[%clk 0:01:04]} 22. Ng5 {[%clk 0:01:57]}  Rde8 {[%clk 0:00:58]} 23. Nf3 {[%clk 0:01:39]}  Kg8 {[%clk 0:00:57]} 24. Ne5 {[%clk 0:01:38]}  Nxe5 {[%clk 0:00:55]} 25. Rxe5 {[%clk 0:01:38]}  Qc4 {[%clk 0:00:54]} 26. Ra1 {[%clk 0:01:33]}  Rf6 {[%clk 0:00:51]} 27. Qf2 {[%clk 0:01:26]}  Rc8 {[%clk 0:00:38]} 28. a3 {[%clk 0:01:26]}  Kh7 {[%clk 0:00:33]} 29. Rae1 {[%clk 0:01:26]}  Rc6 {[%clk 0:00:31]} 30. Qf3 {[%clk 0:01:22]}  Rb6 {[%clk 0:00:25]} 31. R1e2 {[%clk 0:01:22]}  Qa2 {[%clk 0:00:25]} 32. Qf2 {[%clk 0:01:20]}  Rg6 {[%clk 0:00:24]} 33. Kh2 {[%clk 0:01:21]}  Rc6 {[%clk 0:00:19]} 34. d5 {[%clk 0:01:21]}  exd5 {[%clk 0:00:18]} 35. Qxf5 {[%clk 0:01:21]}  Rf6 {[%clk 0:00:19]} 36. Qd3 {[%clk 0:01:22]}  Qa1 {[%clk 0:00:16]} 37. Re6 {[%clk 0:01:12]}  Qf1 {[%clk 0:00:16]} 38. Rxf6 {[%clk 0:01:11]}  Qxf6 {[%clk 0:00:17]} 39. Qxd5 {[%clk 0:01:09]}  Qf4+ {[%clk 0:00:17]} 40. Kg1 {[%clk 0:01:07]}  Qc1+ {[%clk 0:00:18]} 41. Kh2 {[%clk 0:01:07]}  Qf4+ {[%clk 0:00:18]} 42. Kh1 {[%clk 0:01:08]}  Qc1+ {[%clk 0:00:18]} 43. Kh2 {[%clk 0:01:07]}  Qf4+ {[%clk 0:00:19]} 1/2-1/2


[Site "https://www.chess.com"]

[Event "Titled Tuesday Blitz June 20 Late 2023"]
[White "Kakabayev, Mergen"]
[Black "Svane, Rasmus"]
[WhiteFideId "14002990"]
[BlackFideId "4657101"]
[WhiteElo "2240"]
[BlackElo "2601"]
[Result "1-0"]
[Round "3"]
[TimeControl "180+2"]
[Date "2023.06.20"]
[WhiteClock "0:00:52"]
[BlackClock "0:00:41"]
[Board "40"]

1. e4 {[%clk 0:02:59]}  c6 {[%clk 0:02:59]} 2. d4 {[%clk 0:02:59]}  d5 {[%clk 0:03:00]} 3. e5 {[%clk 0:03:00]}  Bf5 {[%clk 0:03:00]} 4. h4 {[%clk 0:03:00]}  h5 {[%clk 0:03:00]} 5. Bd3 {[%clk 0:03:00]}  Bxd3 {[%clk 0:03:00]} 6. Qxd3 {[%clk 0:03:01]}  Qa5+ {[%clk 0:03:01]} 7. Nd2 {[%clk 0:03:01]}  e6 {[%clk 0:03:01]} 8. Nf3 {[%clk 0:03:01]}  Nh6 {[%clk 0:03:01]} 9. O-O {[%clk 0:03:01]}  Nf5 {[%clk 0:03:02]} 10. c4 {[%clk 0:03:01]}  Be7 {[%clk 0:03:01]} 11. g3 {[%clk 0:03:01]}  O-O {[%clk 0:03:00]} 12. b3 {[%clk 0:03:01]}  Rd8 {[%clk 0:03:01]} 13. a4 {[%clk 0:02:54]}  c5 {[%clk 0:03:01]} 14. Ba3 {[%clk 0:02:41]}  Nc6 {[%clk 0:03:00]} 15. dxc5 {[%clk 0:02:31]}  dxc4 {[%clk 0:02:58]} 16. Qxc4 {[%clk 0:02:31]}  Rxd2 {[%clk 0:02:58]} 17. b4 {[%clk 0:02:29]}  Qd8 {[%clk 0:02:58]} 18. Nxd2 {[%clk 0:02:24]}  Qxd2 {[%clk 0:02:59]} 19. Rad1 {[%clk 0:02:17]}  Nxe5 {[%clk 0:02:48]} 20. Qe4 {[%clk 0:02:13]}  Qc3 {[%clk 0:02:46]} 21. Bc1 {[%clk 0:02:13]}  a5 {[%clk 0:02:00]} 22. Qxb7 {[%clk 0:02:10]}  Rf8 {[%clk 0:02:01]} 23. Bf4 {[%clk 0:01:58]}  axb4 {[%clk 0:01:45]} 24. Bxe5 {[%clk 0:01:58]}  Qxe5 {[%clk 0:01:43]} 25. c6 {[%clk 0:01:58]}  Bc5 {[%clk 0:01:35]} 26. Rd3 {[%clk 0:01:41]}  Nxg3 {[%clk 0:01:29]} 27. c7 {[%clk 0:01:40]}  Ne2+ {[%clk 0:01:28]} 28. Kh1 {[%clk 0:01:38]}  Kh7 {[%clk 0:01:13]} 29. Rd8 {[%clk 0:01:28]}  Qf6 {[%clk 0:00:58]} 30. Qe4+ {[%clk 0:01:25]}  g6 {[%clk 0:00:55]} 31. Rxf8 {[%clk 0:00:58]}  Ng3+ {[%clk 0:00:53]} 32. Kg2 {[%clk 0:00:58]}  Nxe4 {[%clk 0:00:52]} 33. c8=Q {[%clk 0:00:57]}  Qxh4 {[%clk 0:00:42]} 34. Rxf7+ {[%clk 0:00:53]}  Kh6 {[%clk 0:00:42]} 35. Qh8+ {[%clk 0:00:53]}  Kg5 {[%clk 0:00:43]} 36. Qd8+ {[%clk 0:00:53]}  Kg4 {[%clk 0:00:41]} 37. f3# {[%clk 0:00:52]} 1-0


[Site "https://www.chess.com"]

[Event "Titled Tuesday Blitz June 20 Late 2023"]
[White "Durarbayli, Vasif"]
[Black "Subelj, Jan"]
[WhiteFideId "13402935"]
[BlackFideId "14618583"]
[WhiteElo "2551"]
[BlackElo "2499"]
[Result "1-0"]
[Round "3"]
[TimeControl "180+2"]
[Date "2023.06.20"]
[WhiteClock "0:00:08"]
[BlackClock "0:00:00"]
[Board "44"]

1. e4 {[%clk 0:03:00]}  c6 {[%clk 0:02:59]} 2. d4 {[%clk 0:03:00]}  d5 {[%clk 0:03:00]} 3. exd5 {[%clk 0:03:01]}  cxd5 {[%clk 0:03:01]} 4. c4 {[%clk 0:03:02]}  Nf6 {[%clk 0:03:01]} 5. Nc3 {[%clk 0:03:02]}  g6 {[%clk 0:03:02]} 6. Nf3 {[%clk 0:03:00]}  Bg7 {[%clk 0:03:02]} 7. Qb3 {[%clk 0:03:00]}  dxc4 {[%clk 0:02:59]} 8. Bxc4 {[%clk 0:03:00]}  O-O {[%clk 0:02:59]} 9. Ne5 {[%clk 0:02:49]}  e6 {[%clk 0:02:59]} 10. Be3 {[%clk 0:02:47]}  a6 {[%clk 0:02:50]} 11. O-O {[%clk 0:02:42]}  b5 {[%clk 0:02:48]} 12. Be2 {[%clk 0:02:42]}  Nd5 {[%clk 0:02:10]} 13. Nxd5 {[%clk 0:02:40]}  exd5 {[%clk 0:02:07]} 14. Rfc1 {[%clk 0:02:33]}  Be6 {[%clk 0:02:03]} 15. a4 {[%clk 0:02:31]}  bxa4 {[%clk 0:01:59]} 16. Qxa4 {[%clk 0:02:06]}  Nd7 {[%clk 0:01:52]} 17. Nc6 {[%clk 0:01:46]}  Qb6 {[%clk 0:01:51]} 18. Bxa6 {[%clk 0:01:46]}  Qxb2 {[%clk 0:01:32]} 19. Rcb1 {[%clk 0:01:41]}  Qc3 {[%clk 0:01:15]} 20. Ra3 {[%clk 0:01:35]}  Nb6 {[%clk 0:01:14]} 21. Qa5 {[%clk 0:00:45]}  Qxa5 {[%clk 0:01:11]} 22. Rxa5 {[%clk 0:00:46]}  Nc4 {[%clk 0:01:04]} 23. Bxc4 {[%clk 0:00:35]}  Rxa5 {[%clk 0:01:03]} 24. Nxa5 {[%clk 0:00:31]}  dxc4 {[%clk 0:01:04]} 25. Rc1 {[%clk 0:00:27]}  Rc8 {[%clk 0:00:59]} 26. Nb7 {[%clk 0:00:27]}  Bd5 {[%clk 0:00:55]} 27. Nc5 {[%clk 0:00:27]}  h5 {[%clk 0:00:50]} 28. f3 {[%clk 0:00:23]}  Ra8 {[%clk 0:00:38]} 29. Nd7 {[%clk 0:00:23]}  Ra3 {[%clk 0:00:33]} 30. Kf2 {[%clk 0:00:15]}  Rd3 {[%clk 0:00:23]} 31. Nb6 {[%clk 0:00:11]}  Bxd4 {[%clk 0:00:20]} 32. Nxd5 {[%clk 0:00:10]}  Bb2 {[%clk 0:00:16]} 33. Nf4 {[%clk 0:00:07]}  Rxe3 {[%clk 0:00:16]} 34. Rxc4 {[%clk 0:00:05]}  Re8 {[%clk 0:00:14]} 35. Nd5 {[%clk 0:00:04]}  Bg7 {[%clk 0:00:13]} 36. g4 {[%clk 0:00:04]}  Rd8 {[%clk 0:00:12]} 37. Ne7+ {[%clk 0:00:03]}  Kf8 {[%clk 0:00:13]} 38. Nc6 {[%clk 0:00:04]}  Rd2+ {[%clk 0:00:12]} 39. Kg3 {[%clk 0:00:05]}  hxg4 {[%clk 0:00:12]} 40. fxg4 {[%clk 0:00:06]}  Rd6 {[%clk 0:00:08]} 41. h4 {[%clk 0:00:06]}  Re6 {[%clk 0:00:07]} 42. Kf3 {[%clk 0:00:06]}  Rf6+ {[%clk 0:00:07]} 43. Kg3 {[%clk 0:00:06]}  Re6 {[%clk 0:00:08]} 44. Kf3 {[%clk 0:00:05]}  Rf6+ {[%clk 0:00:08]} 45. Ke4 {[%clk 0:00:05]}  Re6+ {[%clk 0:00:09]} 46. Kd5 {[%clk 0:00:06]}  Bf6 {[%clk 0:00:08]} 47. g5 {[%clk 0:00:06]}  Bg7 {[%clk 0:00:08]} 48. Ra4 {[%clk 0:00:06]}  Kg8 {[%clk 0:00:06]} 49. Ra8+ {[%clk 0:00:06]}  Kh7 {[%clk 0:00:06]} 50. Nd8 {[%clk 0:00:07]}  Re5+ {[%clk 0:00:05]} 51. Kd6 {[%clk 0:00:07]}  f6 {[%clk 0:00:04]} 52. Ne6 {[%clk 0:00:06]}  fxg5 {[%clk 0:00:01]} 53. Nxg5+ {[%clk 0:00:07]}  Kh6 {[%clk 0:00:01]} 54. Nf7+ {[%clk 0:00:07]}  Kh5 {[%clk 0:00:00]} 55. Nxe5 {[%clk 0:00:08]} 1-0


[Site "https://www.chess.com"]

[Event "Titled Tuesday Blitz June 20 Late 2023"]
[White "Henriquez Villagra, Cristobal"]
[Black "Rostomyan, Mikayel"]
[WhiteFideId "3409350"]
[BlackFideId "13313754"]
[WhiteElo "2542"]
[BlackElo "2061"]
[Result "1-0"]
[Round "3"]
[TimeControl "180+2"]
[Date "2023.06.20"]
[WhiteClock "0:00:31"]
[BlackClock "0:00:03"]
[Board "45"]

1. g3 {[%clk 0:03:00]}  d5 {[%clk 0:02:53]} 2. Bg2 {[%clk 0:03:01]}  e5 {[%clk 0:02:48]} 3. c4 {[%clk 0:03:00]}  Be6 {[%clk 0:02:46]} 4. cxd5 {[%clk 0:02:49]}  Bxd5 {[%clk 0:02:45]} 5. Nf3 {[%clk 0:02:50]}  Nc6 {[%clk 0:02:43]} 6. O-O {[%clk 0:02:45]}  Be7 {[%clk 0:02:38]} 7. Nc3 {[%clk 0:02:46]}  Be6 {[%clk 0:02:38]} 8. b4 {[%clk 0:02:44]}  Bxb4 {[%clk 0:02:35]} 9. Nxe5 {[%clk 0:02:37]}  Nge7 {[%clk 0:02:06]} 10. Nxc6 {[%clk 0:02:35]}  bxc6 {[%clk 0:02:02]} 11. Qa4 {[%clk 0:02:31]}  Bxc3 {[%clk 0:01:44]} 12. dxc3 {[%clk 0:02:32]}  O-O {[%clk 0:01:44]} 13. Ba3 {[%clk 0:02:29]}  Re8 {[%clk 0:01:36]} 14. Rfd1 {[%clk 0:02:02]}  Qc8 {[%clk 0:01:32]} 15. Bxe7 {[%clk 0:01:58]}  Rxe7 {[%clk 0:01:31]} 16. Bxc6 {[%clk 0:01:58]}  Rb8 {[%clk 0:01:30]} 17. Rab1 {[%clk 0:01:59]}  Rb6 {[%clk 0:01:17]} 18. Qxa7 {[%clk 0:01:56]}  Kf8 {[%clk 0:00:32]} 19. Rxb6 {[%clk 0:01:45]}  cxb6 {[%clk 0:00:32]} 20. Qxb6 {[%clk 0:01:46]}  Rc7 {[%clk 0:00:29]} 21. Bb5 {[%clk 0:01:24]}  g6 {[%clk 0:00:27]} 22. Qd6+ {[%clk 0:01:21]}  Kg7 {[%clk 0:00:24]} 23. Qe5+ {[%clk 0:01:22]}  Kg8 {[%clk 0:00:23]} 24. Qf6 {[%clk 0:01:21]}  Bd7 {[%clk 0:00:18]} 25. Bxd7 {[%clk 0:01:20]}  Rxd7 {[%clk 0:00:18]} 26. Rxd7 {[%clk 0:01:20]}  Qxd7 {[%clk 0:00:19]} 27. Qd4 {[%clk 0:01:11]}  Qe6 {[%clk 0:00:17]} 28. a4 {[%clk 0:00:57]}  Qxe2 {[%clk 0:00:16]} 29. a5 {[%clk 0:00:58]}  h5 {[%clk 0:00:13]} 30. h4 {[%clk 0:00:53]}  Kh7 {[%clk 0:00:13]} 31. Kg2 {[%clk 0:00:51]}  Kg8 {[%clk 0:00:10]} 32. Qd8+ {[%clk 0:00:51]}  Kh7 {[%clk 0:00:09]} 33. Qd5 {[%clk 0:00:50]}  Kg8 {[%clk 0:00:08]} 34. c4 {[%clk 0:00:51]}  Qa2 {[%clk 0:00:07]} 35. Qb5 {[%clk 0:00:32]}  Qc2 {[%clk 0:00:06]} 36. Qb7 {[%clk 0:00:31]}  Qxc4 {[%clk 0:00:03]} 37. a6 {[%clk 0:00:31]} 1-0


[Site "https://www.chess.com"]

[Event "Titled Tuesday Blitz June 20 Late 2023"]
[White "Elsa167"]
[Black "Piesik, Piotr"]
[BlackFideId "1136194"]
[WhiteElo "2822"]
[BlackElo "2303"]
[Result "1-0"]
[Round "3"]
[TimeControl "180+2"]
[Date "2023.06.20"]
[WhiteClock "0:00:07"]
[BlackClock "0:00:40"]
[Board "49"]

1. d4 {[%clk 0:03:00]}  c5 {[%clk 0:02:56]} 2. d5 {[%clk 0:03:00]}  e5 {[%clk 0:02:55]} 3. Nc3 {[%clk 0:03:01]}  d6 {[%clk 0:02:55]} 4. e4 {[%clk 0:03:01]}  Be7 {[%clk 0:02:56]} 5. Be2 {[%clk 0:03:01]}  Bg5 {[%clk 0:02:56]} 6. Nf3 {[%clk 0:03:01]}  Bxc1 {[%clk 0:02:56]} 7. Qxc1 {[%clk 0:03:00]}  Ne7 {[%clk 0:02:56]} 8. Nd2 {[%clk 0:03:00]}  O-O {[%clk 0:02:57]} 9. Nc4 {[%clk 0:02:59]}  a6 {[%clk 0:02:58]} 10. a4 {[%clk 0:02:59]}  Ng6 {[%clk 0:02:50]} 11. g3 {[%clk 0:02:51]}  Bh3 {[%clk 0:02:49]} 12. a5 {[%clk 0:02:43]}  Qc7 {[%clk 0:02:48]} 13. Nb6 {[%clk 0:02:29]}  Ra7 {[%clk 0:02:48]} 14. Qe3 {[%clk 0:02:19]}  Nd7 {[%clk 0:02:46]} 15. Nca4 {[%clk 0:02:20]}  f5 {[%clk 0:02:38]} 16. Nxd7 {[%clk 0:02:12]}  Qxd7 {[%clk 0:02:39]} 17. Nb6 {[%clk 0:02:12]}  Qe7 {[%clk 0:02:34]} 18. exf5 {[%clk 0:02:09]}  Bxf5 {[%clk 0:02:33]} 19. c3 {[%clk 0:01:51]}  Qf6 {[%clk 0:02:20]} 20. O-O-O {[%clk 0:01:41]}  Ne7 {[%clk 0:02:17]} 21. f4 {[%clk 0:01:34]}  exf4 {[%clk 0:02:16]} 22. Qxf4 {[%clk 0:01:27]}  Nc8 {[%clk 0:02:07]} 23. Nxc8 {[%clk 0:01:26]}  Bxc8 {[%clk 0:02:06]} 24. Qxf6 {[%clk 0:01:23]}  Rxf6 {[%clk 0:02:06]} 25. Rhf1 {[%clk 0:01:12]}  Bh3 {[%clk 0:02:01]} 26. Rxf6 {[%clk 0:01:12]}  gxf6 {[%clk 0:02:02]} 27. Bh5 {[%clk 0:01:08]}  Ra8 {[%clk 0:01:55]} 28. Re1 {[%clk 0:01:08]}  Kf8 {[%clk 0:01:55]} 29. g4 {[%clk 0:01:00]}  Rd8 {[%clk 0:01:44]} 30. Re6 {[%clk 0:00:58]}  Kg7 {[%clk 0:01:40]} 31. Re7+ {[%clk 0:00:57]}  Kh6 {[%clk 0:01:41]} 32. Rf7 {[%clk 0:00:51]}  Kg5 {[%clk 0:01:29]} 33. Rxh7 {[%clk 0:00:46]}  f5 {[%clk 0:01:29]} 34. Rg7+ {[%clk 0:00:19]}  Kh4 {[%clk 0:01:24]} 35. Bg6 {[%clk 0:00:16]}  Bxg4 {[%clk 0:01:21]} 36. Kd2 {[%clk 0:00:12]}  f4 {[%clk 0:01:15]} 37. Ke1 {[%clk 0:00:12]}  Rd7 {[%clk 0:01:12]} 38. Rxd7 {[%clk 0:00:07]}  Bxd7 {[%clk 0:01:13]} 39. Kf2 {[%clk 0:00:07]}  Kg4 {[%clk 0:01:01]} 40. Bf7 {[%clk 0:00:05]}  Kf5 {[%clk 0:01:01]} 41. h4 {[%clk 0:00:05]}  Bb5 {[%clk 0:00:52]} 42. Be6+ {[%clk 0:00:04]}  Ke5 {[%clk 0:00:50]} 43. h5 {[%clk 0:00:04]}  Bd3 {[%clk 0:00:49]} 44. h6 {[%clk 0:00:05]}  Be4 {[%clk 0:00:48]} 45. c4 {[%clk 0:00:05]}  Kf6 {[%clk 0:00:48]} 46. Bc8 {[%clk 0:00:05]}  Bd3 {[%clk 0:00:45]} 47. b3 {[%clk 0:00:05]}  Bc2 {[%clk 0:00:46]} 48. Bxb7 {[%clk 0:00:06]}  Bxb3 {[%clk 0:00:45]} 49. Bxa6 {[%clk 0:00:06]}  Kg6 {[%clk 0:00:40]} 50. Bb5 {[%clk 0:00:07]} 1-0


[Site "https://www.chess.com"]